bitfinex/quotes_ETHUSD_20241022
["timestamp","ask_amount","ask_price","bid_price","bid_amount"]
[1729600579861,0.8082,2625.9,2625.8,3.0]
[1729600580045,11.76525919,2625.9,2625.8,3.0]
[1729600580364,3.80981,2624.8,2624.7,3.0]
[1729600580579,0.08595964,2624.8,2624.7,3.0]
[1729600580878,0.01,2625.0,2624.7,3.07009521]
[1729600581185,3.81981,2624.8,2624.7,3.07009521]
[1729600581357,0.01,2624.8,2624.7,3.07009521]
[1729600581844,3.80969,2624.9,2624.7,3.07009521]
[1729600582274,0.01,2624.8,2624.7,3.07009521]
[1729600582476,0.07595964,2624.8,2624.7,3.07009521]
[1729600582682,0.01,2625.1,2624.7,3.07009521]
[1729600582683,0.02,2625.3,2624.7,3.37710473]
[1729600582841,3.80925,2625.2,2624.7,3.37710473]
[1729600583275,0.09595964,2625.3,2624.8,3.79703895]
[1729600583276,0.02,2625.3,2624.8,3.79703895]
[1729600583593,0.02,2625.3,2624.9,0.0709996]
[1729600584082,0.02,2625.3,2624.9,0.8794996]
[1729600584083,3.90505964,2625.3,2624.9,0.8794996]
[1729600584376,3.90516964,2625.3,2624.9,1.5211477]
[1729600584620,0.09595964,2625.3,2624.9,0.8794996]
[1729600585263,3.90506964,2625.3,2624.9,0.8794996]
[1729600585461,0.09595964,2625.3,2624.9,0.8794996]
[1729600585872,3.90505964,2625.3,2624.9,0.8794996]
[1729600586066,0.09595964,2625.3,2624.9,0.8794996]
[1729600586500,0.01,2625.1,2624.9,0.0709996]
[1729600586705,0.01,2625.1,2624.7,3.30700952]
[1729600586866,3.80953,2625.0,2624.8,0.07106276]
[1729600587066,3.80953,2625.0,2624.7,3.0]
[1729600587067,0.01,2624.8,2624.7,3.0]
[1729600587266,3.81981,2624.8,2624.7,3.0711385]
[1729600587577,11.34236128,2624.8,2624.7,2.15834312]
[1729600588184,11.88236128,2624.8,2624.7,0.25336312]
[1729600588389,12.53599465,2624.8,2624.7,0.25336312]
[1729600588570,11.97599465,2624.8,2624.7,0.25336312]
[1729600588777,7.62151,2624.8,2624.7,0.25336312]
[1729600588981,7.69746964,2624.8,2624.7,0.25336312]
[1729600594296,0.08595964,2624.8,2624.7,0.25336312]
[1729600594501,0.01,2624.8,2624.7,0.25336312]
[1729600594801,0.08595964,2625.3,2624.9,3.80966]
[1729600595022,0.08595964,2625.3,2625.1,3.80937]
[1729600595222,0.09595964,2625.3,2625.0,0.8864977]
[1729600595526,0.01,2625.3,2625.1,0.07192197]
[1729600595829,0.01,2625.3,2625.1,3.88121197]
[1729600596038,0.01,2625.3,2625.1,7.69051197]
[1729600596333,0.01,2625.3,2625.1,3.88121197]
[1729600596838,0.01,2625.5,2625.3,7.61801]
[1729600597124,0.01,2625.5,2625.4,0.07145565]
[1729600597930,0.08595964,2625.7,2625.5,3.80868]
[1729600598091,0.02279601,2625.8,2625.7,3.8085]
[1729600598291,0.01,2625.9,2625.7,3.87951884]
[1729600598624,0.01,2626.0,2625.8,3.80836]
[1729600598851,0.01,2626.1,2625.9,3.80814]
[1729600598999,0.01,2626.1,2625.8,3.80836]
[1729600599195,0.01,2626.1,2626.0,0.0707918]
[1729600599699,0.01,2626.1,2625.8,3.80836]
[1729600599912,0.01,2626.1,2625.9,0.07086747]
[1729600600119,0.01,2626.1,2626.0,3.80807]
[1729600600437,0.08595964,2626.3,2626.1,0.7996]
[1729600600607,0.01,2626.3,2626.2,3.80778]
[1729600600809,0.09595964,2626.5,2626.3,3.80762]
[1729600601036,0.01,2626.5,2626.4,3.80749]
[1729600601240,0.01,2626.5,2626.4,3.87712775]
[1729600601554,0.01,2626.8,2626.5,3.80721]
[1729600601841,0.01,2626.8,2626.4,0.06963775]
[1729600601842,0.01,2626.8,2626.6,3.8072]
[1729600602040,0.01,2626.8,2626.6,3.87660682]
[1729600602213,0.01,2626.7,2626.6,0.06940682]
[1729600602552,0.02279601,2627.0,2626.9,3.80676]
[1729600602752,0.08595964,2627.1,2626.9,3.80676]
[1729600602753,0.01,2627.1,2626.9,3.80676]
[1729600602952,0.01,2627.1,2626.9,3.87593992]
[1729600603997,0.01,2627.0,2626.9,0.06917992]
[1729600604372,0.01,2627.0,2626.7,4.55768]
[1729600604696,0.01,2627.0,2626.9,0.06917992]
[1729600605296,0.01,2627.0,2626.9,3.87593992]
[1729600605460,0.01,2627.0,2626.9,0.06917992]
[1729600605659,0.01,2627.0,2626.8,3.80686]
[1729600605860,0.01,2627.0,2626.9,0.06917992]
[1729600606261,0.01,2627.0,2626.7,4.55768]
[1729600606596,0.01,2627.1,2626.9,3.80676]
[1729600606806,0.08595964,2627.2,2626.8,0.06925555]
[1729600606959,0.01,2627.1,2627.0,0.06910431]
[1729600607163,0.01,2627.1,2626.9,3.80676]
[1729600607164,0.01,2627.1,2626.9,3.87561727]
[1729600607369,0.01,2627.1,2627.0,0.06877746]
[1729600608467,0.08595964,2627.1,2627.0,0.06877746]
[1729600608664,0.08595964,2627.1,2626.8,3.80683]
[1729600608918,0.08595964,2627.1,2626.9,0.06884889]
[1729600609796,0.01,2627.1,2626.9,0.06884889]
[1729600609963,0.01,2627.1,2626.9,3.87549889]
[1729600610168,0.01,2627.1,2626.9,0.06884889]
[1729600610602,0.08595964,2627.1,2626.7,0.7507]
[1729600610769,0.08595964,2627.1,2627.0,0.06877327]
[1729600610979,0.08595964,2627.1,2626.8,3.80689]
[1729600611176,0.08595964,2627.1,2627.0,0.06877327]
[1729600611401,0.08595964,2627.1,2626.9,0.06884889]
[1729600611612,0.08595964,2627.1,2627.0,0.06877327]
[1729600612021,0.08595964,2627.1,2626.8,3.80689]
[1729600612180,0.08595964,2627.1,2627.0,0.06877327]
[1729600612380,0.08595964,2627.1,2626.9,0.06884889]
[1729600612605,0.08595964,2627.1,2627.0,0.0684171]
[1729600613019,0.08595964,2627.1,2626.8,3.80689]
[1729600613185,0.08595964,2627.1,2627.0,0.0684171]
[1729600613716,0.08595964,2627.1,2626.8,3.80689]
[1729600613894,0.08595964,2627.1,2626.9,3.87519272]
[1729600613895,0.01,2627.1,2626.9,3.87519272]
[1729600614226,0.01,2627.2,2626.9,3.87519272]
[1729600614723,0.01,2627.1,2626.9,0.06849272]
[1729600614923,0.08595964,2627.1,2626.7,4.55761]
[1729600615128,0.08595964,2627.1,2626.8,0.06856835]
[1729600615419,0.08595964,2627.1,2626.8,3.80691]
[1729600615602,0.08595964,2627.1,2626.9,0.06849272]
[1729600616325,0.08595964,2627.1,2626.9,3.87521272]
[1729600616530,0.01,2627.1,2626.9,3.87521272]
[1729600616901,0.01,2627.4,2627.2,4.55832]
[1729600617110,0.01,2627.4,2627.3,0.06819028]
[1729600617298,0.01,2627.4,2626.9,5.41983227]
[1729600617299,3.89199964,2627.4,2626.9,5.41983227]
[1729600617504,0.01,2627.2,2627.0,0.06833333]
[1729600617702,0.08595964,2627.2,2627.0,0.06833333]
[1729600618009,0.01,2627.2,2627.0,0.06833333]
[1729600618212,3.89229964,2627.2,2627.0,0.06833333]
[1729600618956,0.08595964,2627.2,2627.0,0.06833333]
[1729600619929,0.01,2627.2,2627.0,3.87488333]
[1729600620258,0.01,2627.2,2627.0,0.06833333]
[1729600620760,0.08595964,2627.2,2627.0,0.06833333]
[1729600621636,0.01,2627.2,2627.0,0.06833333]
[1729600624687,7.68672964,2627.1,2627.0,0.06833333]
[1729600624976,0.01,2626.9,2626.5,3.80727]
[1729600625133,0.01,2626.9,2626.5,3.80725]
[1729600625333,0.08595964,2626.9,2626.6,0.06624217]
[1729600626154,0.08595964,2626.9,2626.6,3.87340217]
[1729600626361,0.02,2626.9,2626.6,0.06624217]
[1729600626570,4.63165,2626.7,2626.6,0.06624217]
[1729600626741,0.01,2626.3,2625.9,0.8288]
[1729600627044,0.01,2626.3,2625.8,3.80827]
[1729600627045,0.01,2626.1,2626.0,0.06465115]
[1729600627253,4.62252,2626.1,2626.0,0.06465115]
[1729600627450,4.69847964,2626.1,2625.6,3.80864]
[1729600627747,0.89055964,2626.1,2625.8,3.80825]
[1729600628071,0.01,2626.2,2626.1,3.80792]
[1729600628246,0.07595964,2626.4,2626.3,3.80763]
[1729600628571,0.07595964,2626.4,2626.3,3.87205416]
[1729600628935,0.02,2626.5,2626.3,3.87205416]
[1729600629135,0.07595964,2626.4,2626.3,3.87205416]
[1729600629336,0.02,2626.5,2626.3,0.06442416]
[1729600629564,0.07595964,2626.4,2626.2,3.80777]
[1729600629766,0.01,2626.3,2626.2,3.80777]
[1729600630175,0.07595964,2626.4,2626.2,3.80777]
[1729600630388,0.02,2626.5,2626.3,3.80763]
[1729600630535,0.02,2626.5,2626.3,7.6151]
[1729600630743,0.01,2626.5,2626.4,3.80749]
[1729600630965,0.09595964,2626.7,2626.4,3.80749]
[1729600631501,0.07595964,2626.7,2626.6,7.54011593]
[1729600631641,3.81648,2627.1,2626.8,3.80691]
[1729600631642,0.07595964,2627.1,2626.8,3.80691]
[1729600631837,0.01,2627.2,2626.6,3.73291593]
[1729600631838,0.02,2627.0,2626.7,3.80704]
[1729600632380,0.02,2627.0,2626.8,3.8069]
[1729600632538,0.01,2627.0,2626.7,3.80701]
[1729600632742,0.02,2627.0,2626.7,3.80701]
[1729600632970,0.01,2627.0,2626.8,3.80681]
[1729600633275,0.01,2627.0,2626.7,3.80701]
[1729600633517,0.01,2627.0,2626.7,7.61399]
[1729600633843,0.01,2627.0,2626.7,7.61396]
[1729600634181,0.01,2627.0,2626.7,7.61395]
[1729600635385,0.01,2627.0,2626.8,3.8069]
[1729600636991,0.08595964,2627.2,2626.8,3.8069]
[1729600637152,0.01,2627.1,2626.8,3.8069]
[1729600637353,0.01,2627.3,2627.0,3.80656]
[1729600637560,0.01,2627.2,2627.0,3.80656]
[1729600637781,0.08595964,2627.2,2627.0,3.80656]
[1729600637976,0.01,2627.3,2627.0,3.80655]
[1729600638501,0.01,2627.3,2627.0,0.7805]
[1729600638658,0.01,2627.3,2626.9,3.80676]
[1729600639397,0.01,2627.3,2626.9,7.61345]
[1729600639555,0.01,2627.3,2626.9,7.61337]
[1729600639754,0.01,2627.3,2626.9,3.80668]
[1729600640194,0.01,2627.3,2627.0,3.8066]
[1729600641500,0.01,2627.3,2627.1,0.06381909]
[1729600641501,0.08595964,2627.2,2627.1,0.06381909]
[1729600641857,0.08595964,2627.2,2626.8,4.5874]
[1729600642066,0.08595964,2627.2,2627.1,0.06366059]
[1729600642259,0.43905573,2627.2,2626.9,3.8067]
[1729600642454,0.08595964,2627.2,2627.1,0.06349791]
[1729600642956,0.08595964,2627.2,2626.9,3.8067]
[1729600643157,0.08595964,2627.2,2627.0,0.06357352]
[1729600644260,0.35346646,2627.1,2627.0,0.06357352]
[1729600644972,4.15993646,2627.1,2627.0,0.06357352]
[1729600645215,5.0633961,2627.1,2627.0,0.06357352]
[1729600645392,5.62910048,2627.1,2626.7,0.28469615]
[1729600645585,5.62910048,2627.1,2626.5,4.62687]
[1729600645586,3.80685,2626.9,2626.5,4.62687]
[1729600645801,0.35346646,2626.8,2626.7,3.80705]
[1729600645978,0.02,2626.9,2626.7,3.80705]
[1729600645979,0.02,2626.9,2626.7,4.09186461]
[1729600646180,0.02,2626.9,2626.8,0.28481461]
[1729600646426,0.37360846,2626.9,2626.6,3.8072]
[1729600646580,0.35360846,2626.8,2626.7,0.28486307]
[1729600646915,0.35360846,2626.8,2626.7,4.09191307]
[1729600647113,0.35360846,2626.8,2626.7,0.28486307]
[1729600648476,0.35360846,2626.8,2626.7,4.09191307]
[1729600648678,0.35360846,2626.8,2626.7,0.28486307]
[1729600649216,0.35360846,2626.8,2626.7,4.09191307]
[1729600649684,0.35360846,2626.8,2626.7,0.28486307]
[1729600650015,0.35360846,2626.8,2626.6,3.80718]
[1729600650194,0.02,2626.9,2626.7,0.28490679]
[1729600650521,0.35373335,2626.8,2626.6,3.80718]
[1729600650841,0.01,2626.3,2625.9,5.23184087]
[1729600651121,0.01,2626.0,2625.9,9.04005087]
[1729600651289,0.01,2626.2,2625.9,9.04005087]
[1729600651692,0.8087,2626.1,2625.9,5.23184087]
[1729600652013,4.18165766,2626.0,2625.4,3.80883]
[1729600652236,4.2377373,2625.9,2625.4,4.58453]
[1729600652384,0.07595964,2625.8,2625.4,0.7757]
[1729600652584,0.01,2625.7,2625.2,3.8092]
[1729600652811,0.01,2625.7,2625.3,7.80906]
[1729600652990,0.01,2625.7,2625.2,1.11180995]
[1729600653185,3.81851,2625.7,2625.2,4.92103995]
[1729600653576,0.01,2625.7,2625.3,3.80907]
[1729600653776,0.01,2625.7,2625.4,3.80886]
[1729600653991,0.01,2625.7,2625.3,3.80907]
[1729600655688,0.01,2625.7,2625.4,3.80886]
[1729600655916,0.01,2625.7,2625.3,3.80907]
[1729600656419,0.01,2625.7,2625.4,0.06491759]
[1729600656990,3.89452964,2625.7,2625.4,0.06491759]
[1729600658012,0.01,2625.7,2625.4,0.06491759]
[1729600658628,0.01,2625.7,2625.4,3.87383759]
[1729600658827,0.01,2625.8,2625.5,3.80876]
[1729600658997,0.01,2626.0,2625.6,4.61976]
[1729600659194,0.02,2626.0,2625.6,4.68493925]
[1729600659386,0.02,2626.0,2625.7,3.8085]
[1729600659923,3.80821,2625.9,2625.8,0.06502787]
[1729600660130,3.88416964,2625.9,2625.8,0.06502787]
[1729600660286,3.88416964,2625.9,2625.3,3.80894]
[1729600660629,3.80844,2625.8,2625.3,3.80894]
[1729600660790,0.07595964,2625.7,2625.4,3.87455694]
[1729600661133,0.02,2626.0,2625.6,3.80856]
[1729600661426,0.02,2626.0,2625.7,0.0653748]
[1729600661785,0.02,2626.0,2625.7,3.8738448]
[1729600661985,0.08595964,2626.2,2625.8,4.55021593]
[1729600662186,0.01,2626.5,2625.8,4.55021593]
[1729600662187,0.01,2626.6,2626.0,3.73291593]
[1729600662419,3.81721,2626.6,2626.2,3.80777]
[1729600662813,4.61806,2626.7,2626.3,3.87247981]
[1729600663030,0.01,2626.7,2626.3,4.68977981]
[1729600663190,0.01,2626.7,2626.4,3.80748]
[1729600663594,0.01,2626.7,2626.5,0.06469851]
[1729600663788,3.8172,2626.6,2626.5,0.06469851]
[1729600664032,3.80796,2626.1,2625.7,0.8173]
[1729600664187,3.80796,2626.1,2625.8,4.0]
[1729600664922,4.60896,2626.1,2625.7,3.80844]
[1729600665118,0.801,2626.1,2625.7,3.80844]
[1729600665502,0.01,2626.2,2625.9,3.80818]
[1729600665919,0.02,2626.2,2625.9,3.80818]
[1729600666240,0.02,2626.2,2625.9,3.80815]
[1729600666393,0.01,2626.2,2625.9,3.80815]
[1729600666588,0.821,2626.4,2626.0,7.61596]
[1729600666827,0.01,2626.4,2626.2,3.80776]
[1729600667037,0.07595964,2626.5,2626.2,3.80776]
[1729600667329,0.01,2626.4,2626.0,4.60667]
[1729600668340,0.01,2626.4,2626.1,3.80788]
[1729600670998,3.81757,2626.4,2625.9,7.61625]
[1729600671201,0.07595964,2626.3,2626.2,0.06469593]
[1729600671539,3.88358964,2626.3,2626.2,0.06469593]
[1729600671837,3.88358964,2626.3,2626.2,0.06466255]
[1729600671996,3.88358964,2626.3,2625.8,3.80835]
[1729600672197,3.88358964,2626.3,2626.2,0.06466255]
[1729600672398,3.80793,2626.1,2625.7,3.80839]
[1729600672698,3.88388964,2626.1,2625.5,3.80871]
[1729600672894,3.80793,2626.1,2625.7,3.8085]
[1729600673197,3.88388964,2626.1,2625.7,3.8085]
[1729600673398,0.01,2626.0,2625.5,5.1012661]
[1729600673597,3.89405964,2626.0,2625.6,3.80864]
[1729600674447,3.80823,2625.9,2625.4,5.46278969]
[1729600674602,3.80823,2625.9,2625.5,3.80876]
[1729600674813,3.80827,2625.9,2625.4,8.42008]
[1729600675164,4.69067964,2625.8,2625.3,7.53907541]
[1729600675458,4.69067964,2625.8,2625.4,3.80892]
[1729600675965,3.89437964,2625.8,2625.4,3.80892]
[1729600676133,4.63174,2626.1,2625.6,3.80854]
[1729600676335,0.01,2625.9,2625.6,3.80854]
[1729600677018,3.80807,2626.0,2625.6,3.80854]
[1729600677019,6.82795,2626.1,2625.7,0.759]
[1729600677220,0.01,2625.9,2625.7,0.759]
[1729600677461,0.01,2625.9,2625.6,3.80863]
[1729600678840,0.01,2625.9,2625.6,3.80857]
[1729600679019,0.01,2625.9,2625.7,3.80843]
[1729600679886,0.02,2626.1,2625.7,3.80843]
[1729600680151,0.01,2625.9,2625.7,3.80843]
[1729600680368,0.02,2626.1,2625.7,3.80843]
[1729600680532,0.01,2625.9,2625.7,3.80843]
[1729600681427,0.01,2625.9,2625.6,0.96669179]
[1729600681774,0.01,2625.9,2625.6,4.77524179]
[1729600681923,3.82771,2626.3,2625.7,4.66749548]
[1729600682119,3.80779,2626.2,2625.8,4.62998]
[1729600682977,3.82766,2626.3,2625.8,4.62998]
[1729600683136,3.82766,2626.3,2625.9,3.8082]
[1729600683337,3.82766,2626.3,2626.0,0.843818]
[1729600685372,3.82766,2626.3,2625.8,8.43827]
[1729600685679,3.82766,2626.3,2625.8,4.62998]
[1729600686044,7.6354,2626.3,2625.8,4.62998]
[1729600686250,3.82766,2626.3,2625.9,0.06498136]
[1729600686651,3.82766,2626.3,2625.9,3.87314136]
[1729600686853,3.82766,2626.3,2625.9,0.06498136]
[1729600688255,3.80784,2626.2,2625.9,0.06498136]
[1729600688981,7.6354,2626.3,2625.9,0.06498136]
[1729600689285,3.82766,2626.3,2625.9,0.06498136]
[1729600689471,3.80778,2626.2,2625.9,0.06498136]
[1729600692483,0.01,2626.3,2625.9,4.2604875]
[1729600692653,3.82741,2626.5,2626.0,4.68111336]
[1729600692841,3.80752,2626.4,2626.0,4.74601905]
[1729600693152,7.63486,2626.5,2626.0,4.74601905]
[1729600693339,0.01,2626.5,2626.1,1.26743611]
[1729600693543,3.81715,2626.7,2626.3,3.73291593]
[1729600693773,3.81715,2626.7,2626.3,7.54047593]
[1729600693995,3.81715,2626.7,2626.4,0.06460304]
[1729600694150,3.83971601,2626.8,2626.4,0.06460304]
[1729600694482,0.35367646,2626.7,2626.5,3.80732]
[1729600694694,0.02279601,2626.8,2626.7,3.80705]
[1729600694844,0.01,2627.2,2626.7,3.73291593]
[1729600695045,3.80691,2626.8,2626.7,0.06437611]
[1729600695240,3.80743,2626.5,2626.0,0.8264]
[1729600695475,3.80755,2626.4,2626.0,4.8264]
[1729600695683,3.80773,2626.3,2626.0,4.8264]
[1729600695992,3.80779,2626.2,2625.8,5.31013546]
[1729600696346,3.80779,2626.2,2625.8,1.50184546]
[1729600696573,7.6157,2626.2,2625.8,1.50184546]
[1729600696777,3.80779,2626.2,2625.8,1.50184546]
[1729600696984,3.80799,2626.1,2625.8,1.50184546]
[1729600697581,0.01,2626.3,2625.8,1.50184546]
[1729600697899,3.80779,2626.2,2625.8,5.31011546]
[1729600699213,3.80779,2626.2,2625.8,6.6834448]
[1729600699368,7.6157,2626.2,2625.8,1.50184546]
[1729600699572,3.80779,2626.2,2625.8,1.50184546]
[1729600699804,7.61569,2626.2,2625.8,1.50184546]
[1729600700095,3.80779,2626.2,2625.8,1.50184546]
[1729600701497,3.80779,2626.2,2625.9,0.06479776]
[1729600702363,0.01,2626.3,2626.0,3.80799]
[1729600702591,0.01,2626.4,2626.1,3.80791]
[1729600702801,3.81729,2626.6,2626.2,0.7568]
[1729600702977,0.35384997,2626.5,2626.2,4.56456]
[1729600703162,3.81729,2626.6,2626.2,4.56456]
[1729600703163,3.81729,2626.6,2626.3,0.06457855]
[1729600703368,0.35384638,2626.5,2626.3,0.06457855]
[1729600703612,3.81729,2626.6,2626.2,4.56456]
[1729600703823,0.35389242,2626.5,2626.4,0.06450289]
[1729600703964,0.01,2626.6,2626.3,0.06457855]
[1729600704165,3.81722,2626.6,2626.4,0.06450289]
[1729600704565,3.81722,2626.6,2626.2,8.37221]
[1729600704566,0.01,2626.6,2626.2,8.37221]
[1729600704768,0.01,2626.6,2626.5,0.06442725]
[1729600705014,0.01,2626.6,2626.2,4.5645]
[1729600705299,0.01,2626.6,2626.2,9.209444]
[1729600705509,0.01,2626.6,2626.3,0.06457855]
[1729600705671,0.01,2626.6,2626.2,9.209444]
[1729600705870,0.01,2626.6,2626.4,0.06450289]
[1729600706498,0.01,2626.6,2626.5,0.06442725]
[1729600706715,0.01,2626.6,2626.2,9.209454]
[1729600706894,0.01,2626.6,2626.5,0.06442725]
[1729600707092,0.01,2626.6,2626.2,8.37221]
[1729600707299,0.01,2626.6,2626.5,0.06442725]
[1729600707495,0.01,2626.6,2626.2,8.37221]
[1729600707683,0.01,2626.6,2626.5,0.06442725]
[1729600707884,0.01,2626.6,2626.2,4.5645]
[1729600708197,0.01,2626.6,2626.5,0.06441055]
[1729600708400,3.8172,2626.6,2626.2,5.401815]
[1729600708647,3.8172,2626.6,2626.5,0.06441055]
[1729600708805,3.8172,2626.6,2626.2,8.37229]
[1729600709014,0.01,2626.6,2626.3,0.06456185]
[1729600709381,0.01,2626.6,2626.3,3.80756]
[1729600709580,4.58146,2626.8,2626.4,3.87196619]
[1729600709894,4.58893,2627.0,2626.4,0.91574956]
[1729600710229,0.35390028,2626.9,2626.5,3.80725]
[1729600710374,0.02,2627.0,2626.6,4.59969]
[1729600710577,4.57875,2627.2,2626.6,4.74023345]
[1729600710778,0.01,2627.1,2626.7,3.80705]
[1729600710977,3.8165,2627.1,2626.7,3.80705]
[1729600711219,3.8165,2627.1,2626.8,0.06405846]
[1729600711716,3.8165,2627.1,2626.9,0.06398284]
[1729600712020,3.8165,2627.1,2626.7,3.80705]
[1729600712327,3.81647,2627.1,2626.7,4.73241249]
[1729600712525,0.01,2627.1,2626.8,3.87096846]
[1729600712834,3.81645,2627.2,2626.8,3.87096846]
[1729600713314,7.62287,2627.2,2626.8,3.87096846]
[1729600713630,7.62287,2627.2,2626.8,0.06405846]
[1729600713836,0.01,2627.1,2626.8,1.00368556]
[1729600713988,0.01,2627.1,2626.8,4.7464871]
[1729600714337,0.02,2627.4,2626.9,3.87073284]
[1729600714628,0.01,2627.4,2627.1,3.80646]
[1729600714838,0.01,2627.4,2627.1,4.66015191]
[1729600714985,0.01,2627.4,2627.2,0.06360999]
[1729600717529,0.02279601,2627.5,2627.4,0.7776]
[1729600717727,3.01,2627.8,2627.4,4.58364]
[1729600717888,3.01,2627.8,2627.5,3.80588]
[1729600718094,3.01,2627.8,2627.5,3.8688211]
[1729600718289,0.01,2628.1,2627.7,3.80554]
[1729600718489,0.01,2628.1,2627.6,3.94464177]
[1729600718490,3.82513,2628.1,2627.6,3.94464177]
[1729600718716,3.82513,2628.1,2627.8,0.06271437]
[1729600718903,3.82513,2628.1,2627.7,3.86835994]
[1729600719238,3.82513,2628.1,2627.9,0.0626388]
[1729600719403,3.80517,2628.0,2627.8,0.06271437]
[1729600719607,3.80517,2628.0,2627.6,3.80574]
[1729600719930,3.80517,2628.0,2627.6,3.88184657]
[1729600720134,3.80517,2628.0,2627.6,4.7368045]
[1729600720525,3.80517,2628.0,2627.6,4.81291108]
[1729600721735,3.80534,2627.9,2627.6,0.9310645]
[1729600722030,3.81567,2627.7,2627.3,3.80612]
[1729600722234,3.81567,2627.7,2627.3,7.80612]
[1729600722395,3.80567,2627.7,2627.3,7.80612]
[1729600722596,3.81567,2627.7,2627.3,9.13412819]
[1729600723206,7.62138,2627.7,2627.3,5.32800819]
[1729600723408,3.82567,2627.7,2627.1,0.85369191]
[1729600723673,3.80598,2627.5,2627.1,4.66016191]
[1729600723833,3.81598,2627.5,2627.1,0.85369191]
[1729600724531,3.81598,2627.5,2627.0,8.31629541]
[1729600724532,3.80605,2627.4,2627.0,4.50969541]
[1729600724740,3.80605,2627.4,2627.1,4.0]
[1729600724945,3.80605,2627.4,2627.0,8.31630541]
[1729600725444,0.02,2627.5,2627.0,8.31630541]
[1729600725741,3.82591,2627.5,2627.0,8.31630541]
[1729600726106,3.80605,2627.4,2627.0,8.31630541]
[1729600726300,3.80605,2627.4,2627.0,9.52860295]
[1729600726647,3.82591,2627.5,2627.1,3.80647]
[1729600727202,3.81591,2627.5,2627.1,3.80647]
[1729600727428,3.82591,2627.5,2627.1,3.80647]
[1729600727629,3.82591,2627.5,2627.0,5.72199295]
[1729600727943,0.02,2627.5,2627.1,4.0]
[1729600728454,3.81633,2627.2,2627.1,4.0]
[1729600728754,3.80691,2626.8,2626.7,1.50184546]
[1729600728903,3.81692,2626.8,2626.4,3.80747]
[1729600729106,3.81692,2626.8,2626.3,7.61514]
[1729600729323,3.81692,2626.8,2626.3,3.80753]
[1729600729624,3.80692,2626.8,2626.4,3.80747]
[1729600730019,3.81692,2626.8,2626.4,3.80747]
[1729600730435,0.01,2626.8,2626.4,3.80747]
[1729600730606,3.81677,2626.9,2626.5,3.80733]
[1729600731337,3.81677,2626.9,2626.6,0.0635841]
[1729600732735,3.80664,2627.0,2626.6,4.25785551]
[1729600732907,3.81649,2627.1,2626.6,5.1359956]
[1729600733107,3.80679,2626.9,2626.6,1.25267551]
[1729600733432,3.81663,2627.0,2626.6,1.25267551]
[1729600733614,3.80663,2627.0,2626.6,5.05984551]
[1729600733821,3.80663,2627.0,2626.6,5.13598103]
[1729600734028,3.80663,2627.0,2626.7,0.8943301]
[1729600734235,3.8165,2627.1,2626.7,0.8943301]
[1729600734404,3.8165,2627.1,2626.8,0.06356212]
[1729600734602,0.01,2627.1,2626.8,0.06356212]
[1729600734801,0.01,2627.3,2626.9,3.88281186]
[1729600735016,0.01,2627.3,2626.9,1.29518128]
[1729600735017,3.81625,2627.3,2626.9,1.29518128]
[1729600735254,3.81625,2627.3,2626.9,0.06348649]
[1729600737261,3.80646,2627.2,2626.9,0.06348649]
[1729600737624,7.6129,2627.2,2626.7,4.7013601]
[1729600737826,3.80644,2627.2,2627.0,0.06336917]
[1729600738027,3.80648,2627.1,2626.8,4.0]
[1729600738261,3.80648,2627.1,2626.8,4.88589436]
[1729600738756,3.80643,2627.2,2626.8,4.88589436]
[1729600738757,3.80639,2627.2,2626.8,8.69280436]
[1729600739546,3.80648,2627.1,2626.8,4.88589436]
[1729600739952,3.80635,2627.2,2626.8,8.69279436]
[1729600740163,3.80635,2627.2,2626.8,4.88589436]
[1729600740467,0.8098,2626.9,2626.3,0.7591]
[1729600740625,0.01,2626.7,2626.4,4.0]
[1729600740826,3.8073,2626.6,2626.4,4.0]
[1729600741544,3.82707,2626.7,2626.4,4.0]
[1729600742073,3.82707,2626.7,2626.3,3.80761]
[1729600742249,3.82707,2626.7,2626.3,0.82967054]
[1729600742426,3.80736,2626.5,2626.1,8.29694541]
[1729600742625,3.80726,2626.6,2626.2,7.80777]
[1729600742822,3.80726,2626.6,2626.2,4.0]
[1729600743022,3.80736,2626.5,2626.2,4.0]
[1729600743260,3.80736,2626.5,2626.2,5.61049454]
[1729600743923,3.81736,2626.5,2626.2,5.61049454]
[1729600744124,0.02,2626.7,2626.2,5.61049454]
[1729600744358,3.82719,2626.7,2626.2,9.41827454]
[1729600744571,3.81736,2626.5,2626.2,5.61049454]
[1729600745373,3.81763,2626.3,2626.2,4.0]
[1729600745572,3.80806,2626.1,2625.8,2.25364546]
[1729600745734,3.80806,2626.1,2625.9,4.0]
[1729600746123,3.8078,2626.2,2625.9,4.0]
[1729600746371,3.80796,2626.1,2626.0,0.06419234]
[1729600746569,3.8078,2626.2,2626.0,0.06419234]
[1729600746765,3.81766,2626.3,2625.8,6.06191546]
[1729600746930,3.81766,2626.3,2625.9,0.06426801]
[1729600747350,3.82766,2626.3,2625.9,0.06426801]
[1729600748138,0.02,2626.3,2625.9,0.06426801]
[1729600748347,3.80779,2626.2,2625.9,0.06426801]
[1729600749087,3.05000001,2626.0,2625.9,0.06426801]
[1729600750282,0.02,2626.5,2625.9,8.77447745]
[1729600750572,3.82736,2626.5,2626.1,3.80786]
[1729600750750,3.82736,2626.5,2626.1,7.61571]
[1729600750949,3.82736,2626.5,2626.2,0.0643789]
[1729600751131,3.82736,2626.5,2626.2,0.91102779]
[1729600751338,0.02,2626.5,2626.2,0.91102779]
[1729600751735,3.82737,2626.5,2626.2,0.91102779]
[1729600751984,0.02,2626.5,2626.2,0.91102779]
[1729600752150,4.63323,2626.3,2626.2,0.0643789]
[1729600752358,4.63323,2626.3,2625.9,4.0]